Workbook

Sheet 1. Forside
A1: Tønder Vand A/S
D8: Bilag A
D13: Indholdsfortegnelse
C16: Fane nr. 2 | D16: Samlet prisloft
C17: Fane nr. 3 | D17: Driftsomkostninger
C18: Fane nr. 4 | D18: Historiske investeringer
C19: Fane nr. 5 | D19: Gennemførte investeringer
C20: Fane nr. 6 | D20: Korrektion investeringer
C21: Fane nr. 7 | D21: Planlagte investeringer
C22: Fane nr. 8 | D22: 1:1 omkostninger
C23: Fane nr. 9 | D23: Miljø- og servicemål
C24: Fane nr. 10 | D24: Nettofinansielle poster
C25: Fane nr. 11 | D25: Over- eller underdækning
C26: Fane nr. 12 | D26: Kontrol med indtægtsrammen og oversigt over ekstraordinære effektiviseringsgevinster

Sheet 2. Samlet prisloft
A1: ='1. Forside'!A1 -> Tønder Vand A/S
B4: Fane 2. Samlet prisloft for 2015
B6: Driftsomkostninger
B7: Driftsomkostninger i prisloftet for 2014 | C7: ='3. Driftsomkostninger'!C20 -> 7675323.825 | D7: kr.
B8: Bortfald af væsentlige omkostninger | C8: =-'3. Driftsomkostninger'!C16 -> 0 | D8: kr.
B9: Korrektion for prisudviklingen 2014-2015 | C9: ='3. Driftsomkostninger'!C22 -> 6140.25906 | D9: kr.
B10: Forhøjelse til effektivt niveau iht. benchmarkingen | C10: ='3. Driftsomkostninger'!C28 -> 0 | D10: kr.
B11: Korrektion for generelt effektiviseringskrav | C11: =-'3. Driftsomkostninger'!C34 -> -33771.42483 | D11: kr.
B12: Korrektion for individuelt effektiviseringskrav | C12: =-'3. Driftsomkostninger'!C43 -> -282452 | D12: kr.
B13: Driftsomkostninger i alt | C13: =SUM(C7:C12) -> 7365240.659 | D13: kr. | E13: =C13 -> 7365240.659 | F13: kr.
B14: Investeringer
B15: Tillæg for historiske investeringer | C15: ='4. Historiske investeringer'!C9 -> 7228444.022 | D15: kr.
B16: Tillæg for gennemførte investeringer i 2011-2013 | C16: ='5. Gennemførte investeringer'!F58 -> 1888075.223 | D16: kr.
B17: Korrektion af tillæg for planlagte investeringer vedrørende 2013 | C17: ='6. Korrektion investeringer'!C10 -> 1152079.26 | D17: kr.
B18: Tillæg for planlagte investeringer i 2014 og 2015 | C18: ='7. Planlagte investeringer'!F35 -> 577653.3333 | D18: kr.
B19: Investeringstillæg i alt | C19: =SUM(C15:C18) -> 10846251.84 | D19: kr. | E19: =C19 -> 10846251.84 | F19: kr.
B20: Øvrige omkostninger mv.
B21: Tillæg for 1:1 omkostninger i 2015 | C21: ='8. 1-1 omkostninger'!C10 -> 668542 | D21: kr.
B22: Tillæg for afgift for ledningsført vand i 2015 | C22: ='8. 1-1 omkostninger'!C15 -> 10909812 | D22: kr.
B23: Tillæg vedr. revisorerklæringer og DANVA/FVD-kontingent | C23: ='8. 1-1 omkostninger'!C21 -> 134000 | D23: kr.
B24: Korrektion ift. faktiske 1:1 omkostninger i 2013 | C24: ='8. 1-1 omkostninger'!C27 -> -89406 | D24: kr.
B25: Tillæg for driftsomkostninger til miljø- og servicemål i 2015 | C25: ='9. Miljø- og servicemål'!C8 -> 300000 | D25: kr.
B26: Korrektion ift. faktiske driftsomkostninger til miljø- og servicemål i 2013 | C26: ='9. Miljø- og servicemål'!C15 -> 0 | D26: kr.
B27: Tillæg/fradrag for nettofinansielle poster i 2015 | C27: ='10. Nettofinansielle poster'!C9 -> 1222325 | D27: kr.
B28: Korrektion ift. faktiske nettofinansielle poster i 2013 | C28: ='10. Nettofinansielle poster'!C16 -> 1128188 | D28: kr.
B29: Øvrige omkostninger mv. i alt | C29: =SUM(C21:C28) -> 14273461 | D29: kr. | E29: =C29 -> 14273461 | F29: kr.
B30: Historisk over- eller underdækning
B31: Tillæg/fradrag for over- eller underdækning til og med 2010 | C31: ='11. Over- eller underdækning'!C11 -> -278947.373 | D31: kr. | E31: =C31 -> -278947.373 | F31: kr.
B32: Korrektion i forhold til tidligere indtægtsramme
B33: Korrektion for overholdelse af indtægtsramme i prisloft 2013 | C33: ='12. Kontrol med indtægtsrammen'!E27 -> -248286.0142 | D33: kr. | E33: =C33 -> -248286.0142 | F33: kr.
B34: Samlet prisloft
B35: Indtægtsramme i 2015 | E35: =SUM(E13:E33) -> 31957720.11 | F35: kr.
B36: Debiteret vandmængde i 2013 | E36: 1650174 | F36: m3
B37: Prisloft 2015 | E37: =E35/E36 -> 19.36627296 | F37: kr./m3
B38: Prisloft 2015 ekskl. afgift for ledningsført vand | E38: =(E35-C22)/E36 -> 12.75496288 | F38: kr./m3

Sheet 3. Driftsomkostninger
A1: ='1. Forside'!A1 -> Tønder Vand A/S
B4: Fane 3. Driftsomkostninger
B6: Driftsomkostningerne i prisloftet for 2014
B7: Korrigerede driftsomkostninger i prisloftet for 2013 (DOiPL 2013) | C7: 7830455 | D7: kr.
B8: Prisfremskrivning 1,5 pct. | C8: =0.015*SUM(C7:C7) -> 117456.825 | D8: kr.
B9: Generelt effektiviseringskrav (0 pct.) | C9: 0 | D9: kr.
B10: Individuelt effektiviseringskrav | C10: -272588 | D10: kr.
B11: Driftsomkostningerne i prisloftet for 2014 (DOiPL 2014) | C11: =SUM(C7:C10) -> 7675323.825 | D11: kr.
B14: Korrektion for forventet bortfald af væsentlige omkostninger
B15: Selskabets indberettede bortfald af væsentlige omkostninger inden 2015 | C15: 0 | D15: kr.
B16: Korrektion for forventet bortfald | C16: =SUM(C15:C15) -> 0 | D16: kr.
B19: Korrektion for prisudviklingen fra 2014-2015
B20: Driftsomkostningerne i prisloftet for 2014 | C20: =C11-C16 -> 7675323.825 | D20: kr.
B21: Prisudvikling 2014 - 2015 | C21: 0.08 | D21: pct.
B22: Korrektion for prisudvikling | C22: =C20*(C21/100) -> 6140.25906 | D22: kr.
B25: Eventuel forhøjelse til effektivt niveau iht. benchmarkingen
B26: Selskabets effektive driftsomkostninger iht. benchmarkingen | C26: 5345095 | D26: kr.
B27: Selskabets pristalskorrigerede driftsomkostninger i 2015-niveau | C27: =C20+C22 -> 7681464.084 | D27: kr.
B28: Eventuel forhøjelse til effektivt niveau | C28: =IF(C27>C26,0,C26-C27) -> 0 | D28: kr.
B31: Korrektion for generelt effektiviseringskrav
B32: Driftsomkostningerne i prisloftet for 2014 | C32: =C20 -> 7675323.825 | D32: kr.
B33: Generelt effektiviseringskrav | C33: 0.44 | D33: pct.
B34: Endeligt generelt effektiviseringskrav | C34: =C32*(C33/100) -> 33771.42483 | D34: kr.
B37: Korrektion for individuelt effektiviseringskrav
B38: Rå effektiviseringspotentiale | C38: 2466849 | D38: kr.
B39: Effektiviseringspotentiale efter eventuel korrektion for særlige forhold | C39: 2330228 | D39: kr.
B40: Effektiviseringspotentiale efter forsigtighedshensyn | C40: 1129808 | D40: kr.
B41: Effektiviseringspotentiale efter eventuel korrektion for sammensætning af signifikante costdrivere | C41: 1129808 | D41: kr.
B42: Umiddelbart effektiviseringskrav | C42: =C41/4 -> 282452 | D42: kr.
B43: Endeligt individuelt effektiviseringskrav | C43: =IF(C42>0.05*C20,0.05*C20,IF(C42<0.01*C20,0,C42)) -> 282452 | D43: kr.

Sheet 4. Historiske investeringer
A1: ='3. Driftsomkostninger'!A1 -> Tønder Vand A/S
B4: Fane 4. Historiske investeringer
B6: Tillæg for historiske investeringer
B7: Værdi af selskabets materielle anlægsaktiver pr. 1. januar 2010 | C7: 311404329.7 | D7: kr.
B8: Den årlige standardafskrivning på de materielle anlægsaktiver iht. POLKA | C8: 7228444.022 | D8: kr.
B9: Tillæg i alt i 2015 | C9: =C8 -> 7228444.022 | D9: kr.

Sheet 5. Gennemførte investeringer
A1: ='4. Historiske investeringer'!A1 -> Tønder Vand A/S
B4: Fane 5. Gennemførte investeringer i 2010 - 2013
B6: Tillæg for gennemførte investeringer i 2013
B7: Beskrivelse af investeringen | C7: Årstal | D7: Std. levetid (år) | E7: Anskaffelses-pris (kr.) | F7: Afskrivning
B8: Afregningsmålere, elektroniske > Ø110 mm | C8: 2013 | D8: 10 | E8: 2563075 | F8: =E8/D8 -> 256307.5 | G8: kr.
B9: Beluftningsanlæg, kompressorbeluftning | C9: 2013 | D9: 25 | E9: 81034 | F9: 3241.36 | G9: kr.
B10: Elanlæg - vandværk | C10: 2013 | D10: 25 | E10: 478934 | F10: 19157.36 | G10: kr.
B11: Etageareal kontor og mandskabsfaciliteter | C11: 2013 | D11: 75 | E11: 296022 | F11: 3946.96 | G11: kr.
B12: Etageareal vandbehandlingsbygning | C12: 2013 | D12: 75 | E12: 2300195 | F12: 30669.26667 | G12: kr.
B13: Filteranlæg, trykfiltre, dobbelt filtrering | C13: 2013 | D13: 25 | E13: 983886 | F13: =E13/D13 -> 39355.44 | G13: kr.
B14: Rentvandsbeholder insitu støbt | C14: 2013 | D14: 50 | E14: 1459490 | F14: 29189.8 | G14: kr.
B15: Sikring (terror, hærværk), SRO | C15: 2013 | D15: 10 | E15: 16281 | F15: 1628.1 | G15: kr.
B16: Skyllevand-/slamhåndteringsanlæg - lukkede betonbeholdere | C16: 2013 | D16: 50 | E16: 342183 | F16: 6843.66 | G16: kr.
B17: SRO-anlæg, vandværk | C17: 2013 | D17: 10 | E17: 333160 | F17: 33316 | G17: kr.
B18: Udpumpningsanlæg, rentvandspumper på vandværk | C18: 2013 | D18: 25 | E18: 164127 | F18: 6565.08 | G18: kr.
B19: Beluftningsanlæg, kompressorbeluftning | C19: 2013 | D19: 25 | E19: 107959 | F19: 4318.36 | G19: kr.
B20: Elanlæg | C20: 2013 | D20: 20 | E20: 800905 | F20: 40045.25 | G20: kr.
B21: Etageareal kontor og mandskabsfaciliteter | C21: 2013 | D21: 75 | E21: 274648 | F21: 3661.973333 | G21: kr.
B22: Etageareal vandbehandlingsbygning | C22: 2013 | D22: 75 | E22: 18785066 | F22: 250467.5467 | G22: kr.
B23: Instrumenter (flowmåler+tryk transducer+alarmer) | C23: 2013 | D23: 10 | E23: 309325 | F23: 30932.5 | G23: kr.
B24: Rentvandsbeholder insitu støbt | C24: 2013 | D24: 50 | E24: 3051578 | F24: 61031.56 | G24: kr.
B25: Skyllevand-/slamhåndteringsanl. - åbne med faste sider/bund | C25: 2013 | D25: 50 | E25: 423756 | F25: 8475.12 | G25: kr.
B26: SRO-anlæg, vandværk | C26: 2013 | D26: 10 | E26: 320700 | F26: 32070 | G26: kr.
B27: Udpumpningsanlæg, rentvandspumper på vandværk | C27: 2013 | D27: 25 | E27: 395389 | F27: 15815.56 | G27: kr.
B28: Ø 50mm < Ledningsnet = Ø110 mm | C28: 2013 | D28: 75 | E28: 834 | F28: 11.12 | G28: kr.
B29: Stik på ledningsnet, Konstruktioner | C29: 2013 | D29: 75 | E29: 145478 | F29: 1939.706667 | G29: kr.
B30: Ledningsnet = Ø50 mm | C30: 2013 | D30: 75 | E30: 198524 | F30: 2646.986667 | G30: kr.
B31: Ø 50mm < Ledningsnet = Ø110 mm | C31: 2013 | D31: 75 | E31: 46748 | F31: 623.3066667 | G31: kr.
B32: Ventiler på Ø110 mm < Ledningsnet = Ø 250 mm | C32: 2013 | D32: 75 | E32: 1103439 | F32: 14712.52 | G32: kr.
B33: SRO-brønd/kvarterbrønd/sektionsbrønd, Konstruktioner | C33: 2013 | D33: 50 | E33: 288909 | F33: 5778.18 | G33: kr.
B34: Ledningsnet = Ø50 mm | C34: 2013 | D34: 75 | E34: 15591 | F34: 207.88 | G34: kr.
B35: Stik på ledningsnet, Konstruktioner | C35: 2013 | D35: 75 | E35: 115892 | F35: 1545.226667 | G35: kr.
B36: Ventiler på ledningsnet = Ø50 mm | C36: 2013 | D36: 75 | E36: 172526 | F36: 2300.346667 | G36: kr.
B37: Ø 50mm < Ledningsnet = Ø110 mm | C37: 2013 | D37: 75 | E37: 424949 | F37: 5665.986667 | G37: kr.
B38: Stik på ledningsnet, Konstruktioner | C38: 2013 | D38: 75 | E38: 49896 | F38: 665.28 | G38: kr.
B39: Ventiler på ledningsnet = Ø50 mm | C39: 2013 | D39: 75 | E39: 68089 | F39: 907.8533333 | G39: kr.
B40: Ø 50mm < Ledningsnet = Ø110 mm | C40: 2013 | D40: 75 | E40: 218837 | F40: 2917.826667 | G40: kr.
B41: Stik på ledningsnet, Konstruktioner | C41: 2013 | D41: 75 | E41: 17890 | F41: 238.5333333 | G41: kr.
B42: Ventiler på ledningsnet = Ø50 mm | C42: 2013 | D42: 75 | E42: 24413 | F42: 325.5066667 | G42: kr.
B43: Ø 50mm < Ledningsnet = Ø110 mm | C43: 2013 | D43: 75 | E43: 53115 | F43: 708.2 | G43: kr.
B44: Stik på ledningsnet, Konstruktioner | C44: 2013 | D44: 75 | E44: 108385 | F44: 1445.133333 | G44: kr.
B45: Ventiler på ledningsnet = Ø50 mm | C45: 2013 | D45: 75 | E45: 141183 | F45: 1882.44 | G45: kr.
B46: Ventiler på Ø 50mm < Ledningsnet = Ø110 mm | C46: 2013 | D46: 75 | E46: 94594 | F46: 1261.253333 | G46: kr.
B47: Stik på ledningsnet, Konstruktioner | C47: 2013 | D47: 75 | E47: 35051 | F47: 467.3466667 | G47: kr.
B48: Ventiler på ledningsnet = Ø50 mm | C48: 2013 | D48: 75 | E48: 47831 | F48: 637.7466667 | G48: kr.
B49: Ø 50mm < Ledningsnet = Ø110 mm | C49: 2013 | D49: 75 | E49: 102545 | F49: 1367.266667 | G49: kr.
B50: Ledningsnet = Ø50 mm | C50: 2013 | D50: 75 | E50: 13318 | F50: 177.5733333 | G50: kr.
B51: Stik på ledningsnet, Konstruktioner | C51: 2013 | D51: 75 | E51: 192680 | F51: 2569.066667 | G51: kr.
B52: Ventiler på ledningsnet = Ø50 mm | C52: 2013 | D52: 75 | E52: 262938 | F52: 3505.84 | G52: kr.
B53: Ø 50mm < Ledningsnet = Ø110 mm | C53: 2013 | D53: 75 | E53: 448243 | F53: 5976.573333 | G53: kr.
B54: Køretøjer, entreprenørmaskiner | C54: 2013 | D54: 5 | E54: 33660 | F54: 6732 | G54: kr.
B55: Køretøjer, entreprenørmaskiner | C55: 2013 | D55: 5 | E55: 121931 | F55: 24386.2 | G55: kr.
B56: Tillæg for 2013 | F56: =SUM(F8:F55) -> 968641.2967 | G56: kr.
B57: Tillæg for 2010 - 2012 | F57: 919433.9267 | G57: kr.
B58: Samlet tillæg for gennemførte investeringer | F58: =F56+F57 -> 1888075.223 | G58: kr.

Sheet 6. Korrektion investeringer
A1: ='5. Gennemførte investeringer'!A1 -> Tønder Vand A/S
B4: Fane 6. Korrektion af tillæg for planlagte investeringer
B6: Korrektion af tillæg for planlagte investeringer vedr. 2013
B7: Tillæg for planlagte investeringer i 2013 i prisloft 2013 | C7: 80810 | D7: kr.
B8: Tillæg for planlagte investeringer i 2013 i prisloft 2014 | C8: 704393.3333 | D8: kr.
B9: Selskabets faktiske afskrivninger på gennemførte investeringer i 2013 | C9: ='5. Gennemførte investeringer'!F56 -> 968641.2967 | D9: kr.
B10: Korrektion af tillæg for planlagte investeringer vedr. 2013 | C10: =C9-C7+C9-C8 -> 1152079.26 | D10: kr.

Sheet 7. Planlagte investeringer
A1: ='6. Korrektion investeringer'!A1 -> Tønder Vand A/S
B4: Fane 7. Planlagte investeringer
B6: Tillæg for planlagte investeringer i 2014 og 2015
B7: Beskrivelse af investeringen | C7: Årstal | D7: Std. levetid (år) | E7: Anskaffelses-pris (kr.) | F7: Afskrivning
B8: Afregningsmålere, elektroniske = Ø 110mm (Qn 10) | C8: 2014 | D8: 10 | E8: 1836000 | F8: =E8/D8 -> 183600 | G8: kr.
B9: Ø 50mm < Ledningsnet = Ø110 mm | C9: 2014 | D9: 75 | E9: 585000 | F9: =E9/D9 -> 7800 | G9: kr.
B10: Ø 50mm < Ledningsnet = Ø110 mm | C10: 2014 | D10: 75 | E10: 400000 | F10: =E10/D10 -> 5333.333333 | G10: kr.
B11: Ø 50mm < Ledningsnet = Ø110 mm | C11: 2014 | D11: 75 | E11: 160000 | F11: 2133.333333 | G11: kr.
B12: Ø110 mm < Ledningsnet = Ø 250 mm | C12: 2014 | D12: 75 | E12: 900000 | F12: 12000 | G12: kr.
B13: Ø110 mm < Ledningsnet = Ø 250 mm | C13: 2014 | D13: 75 | E13: 450000 | F13: 6000 | G13: kr.
B14: Ø110 mm < Ledningsnet = Ø 250 mm | C14: 2014 | D14: 75 | E14: 1500000 | F14: 20000 | G14: kr.
B15: Ø 50mm < Ledningsnet = Ø110 mm | C15: 2014 | D15: 75 | E15: 165000 | F15: 2200 | G15: kr.
B16: Ø110 mm < Ledningsnet = Ø 250 mm | C16: 2014 | D16: 75 | E16: 336000 | F16: 4480 | G16: kr.
B17: Ø 50mm < Ledningsnet = Ø110 mm | C17: 2014 | D17: 75 | E17: 468000 | F17: 6240 | G17: kr.
B18: Ø110 mm < Ledningsnet = Ø 250 mm | C18: 2014 | D18: 75 | E18: 306000 | F18: 4080 | G18: kr.
B19: Ø110 mm < Ledningsnet = Ø 250 mm | C19: 2014 | D19: 75 | E19: 650000 | F19: 8666.666667 | G19: kr.
B20: Ø 50mm < Ledningsnet = Ø110 mm | C20: 2015 | D20: 75 | E20: 812500 | F20: 10833.33333 | G20: kr.
B21: Ø 50mm < Ledningsnet = Ø110 mm | C21: 2015 | D21: 75 | E21: 270000 | F21: 3600 | G21: kr.
B22: Ø 50mm < Ledningsnet = Ø110 mm | C22: 2015 | D22: 75 | E22: 380000 | F22: 5066.666667 | G22: kr.
B23: Ø 50mm < Ledningsnet = Ø110 mm | C23: 2015 | D23: 75 | E23: 855000 | F23: 11400 | G23: kr.
B24: Ø 50mm < Ledningsnet = Ø110 mm | C24: 2015 | D24: 75 | E24: 350000 | F24: 4666.666667 | G24: kr.
B25: Ø110 mm < Ledningsnet = Ø 250 mm | C25: 2015 | D25: 75 | E25: 675000 | F25: 9000 | G25: kr.
B26: Ø 50mm < Ledningsnet = Ø110 mm | C26: 2015 | D26: 75 | E26: 460000 | F26: 6133.333333 | G26: kr.
B27: Ø 50mm < Ledningsnet = Ø110 mm | C27: 2015 | D27: 75 | E27: 400000 | F27: 5333.333333 | G27: kr.
B28: Ø 50mm < Ledningsnet = Ø110 mm | C28: 2015 | D28: 75 | E28: 1237500 | F28: 16500 | G28: kr.
B29: Bygning for trykforøgere | C29: 2015 | D29: 75 | E29: 400000 | F29: 5333.333333 | G29: kr.
B30: Afregningsmålere, elektroniske = Ø 110mm (Qn 10) | C30: 2015 | D30: 10 | E30: 1831000 | F30: 183100 | G30: kr.
B31: Ø110 mm < Ledningsnet = Ø 250 mm | C31: 2015 | D31: 75 | E31: 2034000 | F31: 27120 | G31: kr.
B32: Råvandsstation komplet montering og boringshus/tørbrønd | C32: 2015 | D32: 30 | E32: 811000 | F32: 27033.33333 | G32: kr.
B33: Tillæg for 2014 | F33: =SUMIF(C8:C32,"2014",F8:F32) -> 262533.3333 | G33: kr.
B34: Tillæg for 2015 | F34: =SUMIF(C8:C32,"2015",F8:F32) -> 315120 | G34: kr.
B35: Tillæg i alt | F35: =F33+F34 -> 577653.3333 | G35: kr.

Sheet 8. 1-1 omkostninger
A1: ='7. Planlagte investeringer'!A1 -> Tønder Vand A/S
B4: Fane 8. 1:1 omkostninger
B6: Tillæg for budgetterede 1:1 omkostninger i 2015
B7: Betaling til Forsyningssekretariatet | C7: 33000 | D7: kr.
B8: Køb af varer og tjenesteydelser hos et andet prisloftreguleret vandselskab | C8: 617618 | D8: kr.
B9: Ejendomsskatter | C9: 17924 | D9: kr.
B10: Tillæg i alt | C10: =SUM(C7:C9) -> 668542 | D10: kr.
B13: Tillæg for afgift for ledningsført vand i 2015
B14: Afgift for ledningsført vand (6,53 kr./m3) | C14: 10909812 | D14: kr.
B15: Tillæg i alt | C15: =SUM(C14:C14) -> 10909812 | D15: kr.
B18: Tillæg for budgetterede nødvendige udgifter til revisorerklæringer samt ordinært medlemskab af DANVA og FVD i 2015
B19: Betaling for ordinært medlemskab af DANVA/FVD | C19: 94000 | D19: kr.
B20: Betaling for revisorerklæringer | C20: 40000 | D20: kr.
B21: Tillæg i alt | C21: =SUM(C19:C20) -> 134000 | D21: kr.
B24: Korrektion af tillæg for faktiske 1:1 omkostninger (inkl. afgift for ledningsført vand, revisorerklæringer og ordinært medlemskab af DANVA/FVD) i 2013
B25: Selskabets faktiske 1:1 omkostninger mv. i 2013, jf. reguleringsregnskabet | C25: 11711683 | D25: kr.
B26: Tillæg for budgetterede 1:1 omkostninger mv. i prisloft 2013 | C26: 11801089 | D26: kr.
B27: Korrektion af tillæg for budgetterede 1:1 omkostninger mv. i 2013 | C27: =C25-C26 -> -89406 | D27: kr.

Sheet 9. Miljø- og servicemål
A1: Tønder Vand A/S
B4: Fane 9. Driftsomkostninger til miljø- og servicemål
B6: Tillæg for budgetterede driftsomkostninger til miljø- og servicemål i 2015
B7: Ledelsessystem | C7: 300000 | D7: kr.
B8: Tillæg i alt | C8: =SUM(C7:C7) -> 300000 | D8: kr.
B12: Korrektion af tillæg for faktiske driftsomkostninger til miljø- og servicemål i 2013
B13: Selskabets faktiske driftsomkostninger til miljø- og servicemål i 2013, jf. reguleringsregnskabet | C13: 0 | D13: kr.
B14: Tillæg for budgetterede driftsomkostninger til miljø- og servicemål i prisloft 2013 | C14: 0 | D14: kr.
B15: Korrektion af tillæg for budgetterede driftsomkostninger til miljø- og servicemål i 2013 | C15: =C13-C14 -> 0 | D15: kr.

Sheet 10. Nettofinansielle poster
A1: ='2. Samlet prisloft'!A1 -> Tønder Vand A/S
B4: Fane 10. Nettofinansielle poster
B6: Tillæg for budgetterede nettofinansielle poster i 2015
B7: Budgetterede renteudgifter og gebyrer i 2015 | C7: 1244000 | D7: kr.
B8: Budgetterede renteindtægter i 2015 | C8: 21675 | D8: kr.
B9: Tillæg/fradrag i alt | C9: =C7-C8 -> 1222325 | D9: kr.
B13: Korrektion af tillæg for faktiske nettofinansielle poster i 2013
B14: Selskabets faktiske nettofinansielle poster i 2013, jf. reguleringsregnskabet | C14: 1227188 | D14: kr.
B15: Tillæg for budgetterede nettofinansielle poster i prisloft 2013 | C15: 99000 | D15: kr.
B16: Korrektion af tillæg for budgetterede nettofinansielle poster i 2013 | C16: =C14-C15 -> 1128188 | D16: kr.

Sheet 11. Over- eller underdækning
A1: ='1. Forside'!A1 -> Tønder Vand A/S
B4: Fane 11. Over- eller underdækning til og med 2010
B6: Tillæg/fradrag for over- eller underdækning til og med 2010
B7: Opgjort over- eller underdækning per 31. december 2010 | C7: -2526526 | D7: kr.
B8: Heraf beløb indregnet i prislofterne for 2011 - 2014 | C8: -852841.7619 | D8: kr.
B9: Endnu ikke indregnet over- eller underdækning | C9: =C7-C8 -> -1673684.238 | D9: kr.
B10: Resterende indregningsperiode (fastsat i prisloftet for 2012) | C10: 6 | D10: år
B11: Tillæg/fradrag i alt | C11: =IF(C7=0,0,C9/C10) -> -278947.373 | D11: kr.

Sheet 12. Kontrol med indtægtsrammen
A1: ='11. Over- eller underdækning'!A1 -> Tønder Vand A/S
B4: Fane 12. Korrektion for overholdelse af indtægtsrammen i prisloftet for 2013
B6: Samlet opgørelse vedrørende overholdelse af indtægtsrammen i prisloftet for 2013
B7: Indtægtsramme i prisloftet for 2013 | E7: 28526600.99 | F7: kr.
B8: Ikke anvendt likviditet vedrørende investeringer i 2013
B9: Tillæg for historiske investeringer | C9: 7458798.325 | D9: kr.
B10: Tillæg for gennemførte investeringer i 2011 | C10: 438543 | D10: kr.
B11: Korrektion af tillæg for planlagte investeringer i 2011 | C11: -111561 | D11: kr.
B12: Tillæg for planlagte investeringer i 2012 og 2013 | C12: 954271 | D12: kr.
B13: Indtægter fra tilslutningsbidrag | C13: 114727 | D13: kr.
B14: Indtægter fra salg af anlægsaktiver | C14: 0 | D14: kr.
B15: Erstatninger vedr. anlægsaktiver mv. | C15: 0 | D15: kr.
B16: Ekstraordinær effektiviseringsgevinst anvendt til investeringer | C16: 0 | D16: kr.
B17: Udgifter til investeringer | C17: -10009755 | D17: kr.
B18: Ikke anvendt likviditet vedr. investeringer i alt | C18: =SUM(C9:C17) -> -1154976.675 | D18: kr. | E18: =IF(C18<0,0,-C18) -> 0 | F18: kr.
B19: Ekstraordinære effektiviseringsgevinster anvendt til takstnedsættelse
B20: Ekstraordinær effektiviseringsgevinst anvendt til takstnedsættelse | C20: 0 | D20: kr. | E20: =-C20 -> 0 | F20: kr.
B21: Korrektion af ikke opkrævet tillæg fra 2011 i prisloft 2013
B22: Korrektion af ikke opkrævet tillæg fra 2011 i prisloft 2013 | C22: 0 | D22: kr. | E22: =-C22 -> 0 | F22: kr.
B23: Indtægter fra primære aktiviteter mv.
B24: Indtægter fra kubikmetertakster, faste takster, særbidrag, målergebyrer samt andre takster og gebyrer | C24: 28306243 | D24: kr.
B25: Andre indtægter i prisloftåret, som selskabet har opnået i forbindelse med eller som følge af selskabets primære aktiviteter | C25: 468644 | D25: kr.
B26: Indtægter fra primære aktiviteter mv. i alt | C26: =SUM(C24:C25) -> 28774887 | D26: kr. | E26: =-C26 -> -28774887 | F26: kr.
B27: Tillæg/fradrag i prisloftet for 2015 i alt | E27: =E7+E18+E20+E22+E26 -> -248286.0142 | F27: kr.
B31: Oversigt over ekstraordinære effektiviseringsgevinster
C33: 2012 | E33: 2013 | G33: 2014 | I33: 2015 | K33: 2016
B34: Indhentet ekstraordinær effektiviseringsgevinst | C34: 100899 | D34: kr. | E34: 0 | F34: kr. | H34: kr. | J34: kr. | L34: kr.
B35: Gevinst anvendt til investeringer | C35: 0 | D35: kr. | E35: 0 | F35: kr. | H35: kr. | J35: kr. | L35: kr.
B36: Gevinst anvendt til takstnedsættelse | C36: 0 | D36: kr. | E36: 0 | F36: kr. | H36: kr. | J36: kr. | L36: kr.
B37: Korrektion for effektiviseringsgevinst der ikke er anvendt inden 4 år | C37: 0 | D37: kr. | E37: 0 | F37: kr. | H37: kr. | J37: kr. | K37: =IF(C38>SUM(E35:I36),C38-SUM(E35:I36),0)*-1 -> -100899 | L37: kr.
B38: Resterende gevinst | C38: =C34-C35-C36 -> 100899 | D38: kr. | E38: =C38+E34-E35-E36 -> 100899 | F38: kr. | G38: =E38+G34-G35-G36 -> 100899 | H38: kr. | I38: =G38+I34-I35-I36 -> 100899 | J38: kr. | K38: =K34-K35-K36+K37+I38 -> 0 | L38: kr.
